bitfinex/quotes_BTCUSD_20241222
["timestamp","ask_amount","ask_price","bid_price","bid_amount"]
[1734908504435,0.0011712,95446.0,95445.0,1.0028524]
[1734908504827,0.0001712,95446.0,95445.0,0.9968524]
[1734908505052,0.0001712,95446.0,95445.0,0.895544]
[1734908505498,0.0001712,95446.0,95445.0,0.686]
[1734908506199,0.0001712,95446.0,95445.0,0.689]
[1734908506543,0.0001712,95446.0,95445.0,0.686]
[1734908506743,0.0011712,95446.0,95445.0,0.692]
[1734908506951,0.0011712,95446.0,95445.0,0.542]
[1734908507172,0.0011712,95446.0,95443.0,0.03520044]
[1734908507173,0.0001712,95446.0,95443.0,0.03520044]
[1734908507370,0.209544,95445.0,95443.0,0.03520044]
[1734908508546,0.17851808,95444.0,95443.0,0.0001608]
[1734908510137,0.18751808,95444.0,95443.0,0.0011608]
[1734908510554,0.209585,95427.0,95416.0,0.15]
[1734908510757,0.209585,95427.0,95420.0,0.12656553]
[1734908511575,0.209589,95425.0,95420.0,0.12656553]
[1734908512207,0.209582,95429.0,95420.0,0.12656553]
[1734908512837,0.209586,95426.0,95420.0,0.12656553]
[1734908513772,0.209586,95426.0,95416.0,0.17873627]
[1734908514383,0.211586,95426.0,95416.0,0.17873627]
[1734908514583,0.002,95426.0,95417.0,0.209606]
[1734908514978,0.002,95426.0,95417.0,0.419212]
[1734908515161,0.002,95426.0,95421.0,0.209597]
[1734908515362,0.002,95426.0,95418.0,0.209603]
[1734908515590,0.002,95426.0,95422.0,0.209595]
[1734908515791,0.209575,95431.0,95418.0,0.209603]
[1734908515985,0.209575,95431.0,95420.0,0.12656553]
[1734908516246,0.002,95426.0,95421.0,0.209597]
[1734908516422,0.209575,95431.0,95420.0,0.12656553]
[1734908516901,0.285448,95444.0,95422.0,0.15]
[1734908517113,0.0759,95444.0,95432.0,0.209573]
[1734908517286,0.0759,95444.0,95430.0,0.12656553]
[1734908517287,0.0759,95444.0,95431.0,0.15]
[1734908517754,0.0759,95444.0,95433.0,0.209571]
[1734908517954,0.0759,95444.0,95434.0,0.209568]
[1734908518297,0.0759,95444.0,95431.0,0.15]
[1734908518298,0.0759,95444.0,95439.0,0.209557]
[1734908518452,0.0001712,95446.0,95431.0,0.15]
[1734908518653,0.0001712,95446.0,95432.0,0.1013084]
[1734908518883,0.0001712,95446.0,95440.0,0.209555]
[1734908519455,0.0001712,95446.0,95433.0,0.536]
[1734908519657,0.0031712,95446.0,95434.0,0.15]
[1734908519866,0.209544,95445.0,95435.0,0.209566]
[1734908520063,0.0001712,95446.0,95435.0,0.209566]
[1734908520313,0.0001712,95446.0,95434.0,0.15]
[1734908520314,0.419088,95445.0,95434.0,0.15]
[1734908520524,0.0001712,95446.0,95435.0,0.209566]
[1734908520867,0.0011712,95446.0,95435.0,0.209566]
[1734908521756,0.0011712,95446.0,95433.0,0.536]
[1734908521923,0.0011712,95446.0,95439.0,0.209557]
[1734908522295,0.0001712,95446.0,95439.0,0.209557]
[1734908522493,0.0001712,95446.0,95434.0,0.536]
[1734908522715,0.001,95445.0,95435.0,0.1013084]
[1734908522915,0.001,95445.0,95434.0,0.536]
[1734908522916,0.0001712,95446.0,95434.0,0.536]
[1734908523099,0.209553,95441.0,95434.0,0.536]
[1734908523296,0.209553,95441.0,95433.0,8.56e-05]
[1734908523297,0.00130974,95440.0,95433.0,8.56e-05]
[1734908523677,0.0763,95434.0,95433.0,8.56e-05]
[1734908523861,0.07760984,95434.0,95433.0,8.56e-05]
[1734908524359,0.0763,95434.0,95433.0,8.56e-05]
[1734908525656,0.0763,95434.0,95433.0,0.0010856]
[1734908526286,0.0763,95434.0,95433.0,8.56e-05]
[1734908527098,0.0763,95434.0,95433.0,0.0040856]
[1734908530004,0.1776084,95434.0,95433.0,0.0040856]
[1734908530202,0.20191838,95434.0,95433.0,0.0040856]
[1734908530623,0.24851838,95434.0,95433.0,0.0040856]
[1734908530820,0.4972084,95434.0,95433.0,6e-07]
[1734908531026,0.4972084,95434.0,95409.0,8.57e-05]
[1734908531027,0.363308,95416.0,95409.0,8.57e-05]
[1734908531281,0.7146164,95416.0,95409.0,8.57e-05]
[1734908532650,0.4416164,95416.0,95409.0,8.57e-05]
[1734908532898,0.1377,95416.0,95415.0,0.00116092]
[1734908533376,0.0901,95416.0,95415.0,0.00116092]
[1734908533513,0.007,95416.0,95415.0,0.00116092]
[1734908533716,0.09392321,95423.0,95415.0,0.00116092]
[1734908533717,0.09392321,95423.0,95415.0,0.00016092]
[1734908533915,0.19523161,95423.0,95415.0,0.00016092]
[1734908534662,0.209595,95422.0,95415.0,0.00016092]
[1734908534863,0.209599,95420.0,95415.0,0.00016092]
[1734908535166,0.004,95416.0,95415.0,0.00016092]
[1734908535335,0.209599,95420.0,95415.0,0.00016092]
[1734908535683,0.209605,95418.0,95415.0,0.001]
[1734908535885,0.0815,95437.0,95408.0,0.12656553]
[1734908536206,0.0001712,95446.0,95433.0,0.209569]
[1734908536518,0.0001712,95446.0,95427.0,0.12656553]
[1734908536519,0.00148092,95446.0,95427.0,0.12656553]
[1734908536712,0.00148092,95446.0,95412.0,0.1]
[1734908536713,0.00148092,95446.0,95433.0,0.209569]
[1734908536851,0.21102392,95446.0,95420.0,0.12656553]
[1734908537054,0.21102392,95446.0,95417.0,0.536]
[1734908537055,0.209572,95433.0,95417.0,0.536]
[1734908537274,0.209575,95431.0,95417.0,0.536]
[1734908537562,0.209575,95431.0,95417.0,0.53616099]
[1734908537773,0.1013084,95445.0,95420.0,0.12656553]
[1734908537990,0.0001712,95446.0,95432.0,0.15]
[1734908538264,0.0001712,95446.0,95443.0,0.209548]
[1734908538543,0.0091712,95446.0,95443.0,0.419096]
[1734908538950,0.0001712,95446.0,95443.0,0.419096]
[1734908539154,0.0001712,95446.0,95445.0,0.209544]
[1734908539303,0.004,95446.0,95445.0,0.9117244]
[1734908539521,0.0803,95479.0,95473.0,0.209483]
[1734908539927,0.00130927,95478.0,95469.0,0.209491]
[1734908540563,0.00130927,95478.0,95460.0,0.12656553]
[1734908540909,0.00130927,95478.0,95460.0,0.12672652]
[1734908541080,0.00130927,95478.0,95461.0,0.209509]
[1734908541283,0.00130927,95478.0,95466.0,0.209497]
[1734908541421,0.0803,95479.0,95471.0,0.209485]
[1734908542199,0.0061712,95475.0,95471.0,0.418971]
[1734908542406,0.0061712,95475.0,95473.0,0.209483]
[1734908542613,0.0784,95508.0,95475.0,0.536]
[1734908542878,0.0784,95508.0,95490.0,0.18974169]
[1734908543075,0.0483,95514.0,95505.0,0.209413]
[1734908543286,0.09392321,95524.0,95505.0,0.359413]
[1734908543487,0.09392321,95524.0,95505.0,0.9967214]
[1734908543892,0.09392321,95524.0,95505.0,1.1338294]
[1734908544247,0.0007091,95506.0,95505.0,1.1338294]
[1734908544455,0.0007091,95506.0,95505.0,1.37151728]
[1734908545195,0.0027091,95506.0,95505.0,1.37151728]
[1734908545495,0.0001714,95542.0,95535.0,0.209346]
[1734908545694,0.0001714,95542.0,95530.0,0.18974169]
[1734908545926,0.0001714,95542.0,95520.0,0.18974169]
[1734908545927,0.209346,95536.0,95520.0,0.18974169]
[1734908546051,0.00130849,95535.0,95521.0,0.15]
[1734908546263,0.209363,95528.0,95513.0,0.536]
[1734908546502,0.209384,95518.0,95505.0,0.03868788]
[1734908546704,0.1013084,95527.0,95505.0,0.18784887]
[1734908546928,0.00130868,95526.0,95505.0,0.18781576]
[1734908547130,0.209382,95520.0,95510.0,0.18974169]
[1734908547469,0.1013084,95527.0,95510.0,0.18974169]
[1734908547470,0.0001714,95542.0,95512.0,0.209397]
[1734908547678,0.0001714,95542.0,95505.0,0.72381576]
[1734908547679,0.1013084,95541.0,95520.0,0.18974169]
[1734908547929,0.209346,95536.0,95520.0,0.18974169]
[1734908548136,0.00130856,95540.0,95513.0,0.209394]
[1734908548137,0.10261696,95535.0,95530.0,0.001]
[1734908548340,0.418712,95531.0,95513.0,0.209394]
[1734908548628,0.00130857,95530.0,95513.0,0.209394]
[1734908549242,0.209356,95531.0,95518.0,0.209382]
[1734908549642,0.3196564,95535.0,95518.0,0.209382]
[1734908549987,0.209363,95528.0,95514.0,0.15]
[1734908550142,0.209367,95526.0,95514.0,0.15]
[1734908550347,0.209367,95526.0,95505.0,0.00016099]
[1734908550348,0.209391,95515.0,95505.0,0.00016099]
[1734908550555,0.209382,95520.0,95500.0,0.209421]
[1734908550757,0.00130873,95519.0,95500.0,0.2466397]
[1734908550963,0.209384,95518.0,95500.0,0.2466397]
[1734908551164,0.209389,95516.0,95500.0,0.2466397]
[1734908551379,0.209384,95518.0,95500.0,0.2466397]
[1734908551380,0.209393,95514.0,95500.0,0.2466397]
[1734908551549,0.209393,95514.0,95513.0,0.001]
[1734908551749,0.209393,95514.0,95501.0,0.15]
[1734908552364,0.209384,95518.0,95502.0,0.209419]
[1734908552569,0.00130873,95517.0,95502.0,0.209419]
[1734908552754,0.003,95514.0,95502.0,0.209419]
[1734908552969,0.00130873,95517.0,95502.0,0.209419]
[1734908553188,0.209384,95518.0,95502.0,0.209419]
[1734908553388,0.002,95514.0,95502.0,0.209419]
[1734908553886,0.002,95514.0,95500.0,0.2466397]
[1734908553887,0.002,95514.0,95500.0,0.0372187]
[1734908554111,0.002,95514.0,95500.0,0.00016114]
[1734908554112,0.20942,95502.0,95500.0,0.00016114]
[1734908554325,0.00109982,95501.0,95500.0,0.00016114]
[1734908555504,0.00109982,95501.0,95500.0,0.00416114]
[1734908555778,0.209413,95505.0,95500.0,0.00416114]
[1734908555996,0.418834,95503.0,95500.0,0.00016114]
[1734908556231,0.418834,95503.0,95500.0,0.00316114]
[1734908556232,0.209421,95501.0,95500.0,0.00316114]
[1734908556920,0.3107294,95501.0,95500.0,0.00316114]
[1734908557371,0.3107294,95501.0,95500.0,0.00324674]
[1734908557594,0.1253,95512.0,95500.0,0.00324674]
[1734908557823,0.1253,95512.0,95500.0,0.00024674]
[1734908557824,0.00109982,95511.0,95500.0,0.00024674]
[1734908558073,0.009,95501.0,95500.0,0.00124674]
[1734908558298,0.209411,95506.0,95500.0,0.04354282]
[1734908558526,0.209417,95503.0,95500.0,0.00024674]
[1734908558741,0.209421,95501.0,95500.0,0.00124674]
[1734908558962,0.209421,95501.0,95500.0,0.00024674]
[1734908559156,0.209421,95501.0,95500.0,0.00124674]
[1734908559424,0.215421,95501.0,95500.0,0.00124674]
[1734908559879,0.3167294,95501.0,95500.0,0.00124674]
[1734908560117,0.3167294,95501.0,95500.0,0.00024674]
[1734908560118,0.3107294,95501.0,95500.0,0.00024674]
[1734908560366,0.4130294,95501.0,95500.0,0.00024674]
[1734908561416,0.4130294,95501.0,95307.0,0.00010705]
[1734908561417,0.0793,95473.0,95445.0,0.536]
[1734908561596,0.0793,95473.0,95432.0,0.27199824]
[1734908561597,0.209487,95471.0,95457.0,0.0005377]
[1734908561829,0.0793,95473.0,95465.0,0.209499]
[1734908562020,0.418932,95481.0,95465.0,0.209499]
[1734908562256,0.20947,95479.0,95465.0,0.209499]
[1734908562461,0.0793,95485.0,95473.0,0.209482]
[1734908562667,0.0793,95485.0,95460.0,0.18974169]
[1734908562668,0.0793,95485.0,95474.0,0.209479]
[1734908562870,0.0793,95485.0,95461.0,0.209509]
[1734908562871,0.21055882,95484.0,95461.0,0.209509]
[1734908563076,0.20947,95480.0,95461.0,0.209509]
[1734908563262,0.209461,95483.0,95461.0,0.209509]
[1734908563263,0.00109982,95479.0,95466.0,0.209496]
[1734908563492,0.00109982,95482.0,95466.0,0.209496]
[1734908563730,0.00109982,95481.0,95466.0,0.209496]
[1734908563877,0.209467,95480.0,95466.0,0.209496]
[1734908564079,0.209467,95480.0,95461.0,0.04295061]
[1734908564080,0.209495,95468.0,95461.0,0.04295061]
[1734908564279,0.1013084,95484.0,95457.0,0.0005377]
[1734908564480,0.209482,95474.0,95458.0,0.209516]
[1734908564798,0.00109982,95473.0,95458.0,0.209516]
[1734908565100,0.209485,95472.0,95458.0,0.209516]
[1734908565461,0.209496,95467.0,95457.0,0.0005377]
[1734908565663,0.209496,95467.0,95457.0,0.04239804]
[1734908565887,0.209496,95467.0,95457.0,0.0005377]
[1734908566090,0.209506,95463.0,95457.0,0.0005377]
[1734908566615,0.209506,95463.0,95458.0,0.001]
[1734908566765,0.209506,95463.0,95457.0,0.0005377]
[1734908566964,0.209515,95459.0,95457.0,0.0005377]
[1734908567174,0.209461,95483.0,95457.0,0.0005377]
[1734908567381,0.209506,95463.0,95457.0,0.0005377]
[1734908568003,0.209516,95458.0,95457.0,0.0005377]
[1734908568247,0.209516,95458.0,95457.0,0.0025377]
[1734908568429,0.209516,95458.0,95457.0,0.0005377]
[1734908568631,0.3108244,95458.0,95457.0,0.0005377]
[1734908568786,0.3108244,95458.0,95457.0,0.0045377]
[1734908568998,0.3108244,95458.0,95457.0,0.0005377]
[1734908569198,0.4338244,95458.0,95457.0,0.0005377]
[1734908569410,0.2049,95451.0,95406.0,0.09198394]
[1734908569626,0.209608,95417.0,95406.0,0.09214508]
[1734908569832,0.1013084,95447.0,95406.0,0.09214508]
[1734908569833,0.00109982,95416.0,95406.0,0.09214508]
[1734908570029,0.209619,95412.0,95406.0,0.09214508]
[1734908570450,0.209604,95418.0,95406.0,0.00024684]
[1734908571043,0.209619,95411.0,95406.0,0.00024684]
[1734908571258,0.00109982,95410.0,95406.0,0.00024684]
[1734908571698,0.209614,95414.0,95406.0,0.00024684]
[1734908571910,0.209623,95410.0,95406.0,0.00024684]
[1734908572283,0.001,95411.0,95406.0,0.00424684]
[1734908572531,0.209604,95418.0,95406.0,0.00024684]
[1734908572679,0.209594,95423.0,95406.0,0.00024684]
[1734908572881,0.209588,95425.0,95411.0,0.209617]
[1734908573087,0.209575,95431.0,95419.0,0.2096]
[1734908573248,0.209575,95431.0,95406.0,0.00024684]
[1734908573454,0.209575,95431.0,95416.0,0.209608]
[1734908573666,0.0468,95441.0,95418.0,0.209604]
[1734908573877,0.0773,95445.0,95433.0,0.20957]
[1734908575375,0.00109982,95444.0,95433.0,0.20957]
[1734908575711,0.00109982,95444.0,95431.0,0.209575]
[1734908575918,0.004,95445.0,95432.0,0.15]
[1734908576123,0.004,95445.0,95441.0,0.209553]
[1734908576330,0.004,95445.0,95439.0,0.209557]
[1734908576538,0.004,95445.0,95439.0,0.209556]
[1734908576765,0.004,95445.0,95432.0,0.15]
[1734908576976,0.209566,95435.0,95430.0,0.04276976]
[1734908577316,0.209584,95428.0,95422.0,0.15]
[1734908577541,0.209584,95428.0,95421.0,0.53616114]
[1734908577750,0.00109982,95427.0,95421.0,0.53616114]
[1734908577950,0.209591,95424.0,95421.0,0.00016114]
[1734908578344,0.00109982,95423.0,95421.0,0.00016114]
[1734908578556,0.209595,95422.0,95421.0,0.00016114]
[1734908578756,0.209595,95422.0,95421.0,0.00316114]
[1734908578953,0.209595,95422.0,95421.0,0.00016114]
[1734908581375,0.209595,95423.0,95421.0,0.00016114]
[1734908581581,0.209595,95423.0,95411.0,0.209619]
[1734908581582,0.00109982,95422.0,95411.0,0.20478014]
[1734908581814,0.00109982,95422.0,95411.0,0.20494143]
[1734908582217,0.209599,95420.0,95411.0,0.00016129]
[1734908582422,0.00109982,95419.0,95411.0,0.00016129]
[1734908583950,0.0461,95428.0,95411.0,0.00016129]
[1734908584154,0.00109982,95427.0,95411.0,0.00016129]
[1734908584369,0.209586,95426.0,95413.0,0.209615]
[1734908584583,0.0461,95428.0,95414.0,0.00104803]
[1734908584702,0.0813,95445.0,95421.0,0.209595]
[1734908584903,0.1013084,95444.0,95421.0,0.209595]
[1734908585111,0.209563,95437.0,95421.0,0.419192]
[1734908585342,0.209549,95443.0,95411.0,0.00016129]
[1734908585343,0.003,95427.0,95420.0,0.18974169]
[1734908585496,0.003,95427.0,95426.0,0.209586]
[1734908585704,0.209546,95444.0,95421.0,0.209597]
[1734908585901,0.209546,95444.0,95430.0,0.209576]
[1734908586132,0.0903,95445.0,95423.0,0.209593]
[1734908586526,0.0813,95445.0,95435.0,0.209565]
[1734908586796,0.0813,95445.0,95426.0,0.001]
[1734908586936,0.0813,95445.0,95436.0,0.209562]
[1734908587351,0.209531,95451.0,95436.0,0.419125]
[1734908587550,0.0781,95457.0,95440.0,0.18974169]
[1734908587776,0.0492,95462.0,95452.0,0.209528]
[1734908587978,0.209502,95465.0,95452.0,0.209528]
[1734908588174,0.1013084,95465.0,95452.0,0.209528]
[1734908588416,0.0814,95469.0,95456.0,0.209518]
[1734908588597,0.0814,95469.0,95450.0,0.18974169]
[1734908588803,0.258076,95476.0,95459.0,0.18974169]
[1734908589005,0.258076,95476.0,95454.0,0.15]
[1734908589006,0.009,95462.0,95454.0,0.15]
[1734908589206,0.3107864,95475.0,95462.0,0.209506]
[1734908589994,0.006,95469.0,95462.0,0.209506]
[1734908590468,0.006,95469.0,95462.0,0.419012]
[1734908590676,0.006,95469.0,95457.0,0.209518]
[1734908590846,0.006,95469.0,95463.0,0.209505]
[1734908591808,0.006,95469.0,95456.0,0.001]
[1734908591809,0.209494,95468.0,95456.0,0.001]
[1734908592011,0.209509,95461.0,95450.0,0.04312865]
[1734908592220,0.209527,95453.0,95450.0,0.04312865]
[1734908592391,0.1013084,95460.0,95450.0,0.00016129]
[1734908592392,0.209514,95459.0,95450.0,0.00016129]
[1734908592642,0.009,95475.0,95450.0,0.00016129]
[1734908592643,0.0762,95453.0,95450.0,0.00016129]
[1734908592844,0.3108374,95452.0,95450.0,0.00016129]
[1734908593798,0.3108374,95452.0,95450.0,0.00116129]
[1734908594001,0.007,95453.0,95450.0,0.00116129]
[1734908594208,0.20944,95493.0,95450.0,0.15116129]
[1734908594534,0.0762,95502.0,95480.0,0.18974169]
[1734908594729,0.09392321,95505.0,95492.0,0.18974169]
[1734908594960,0.09392321,95505.0,95504.0,0.209415]
[1734908595549,0.09392321,95505.0,95498.0,0.209426]
[1734908595753,0.09392321,95505.0,95504.0,0.209415]
[1734908595929,0.000538,95505.0,95504.0,0.209415]
[1734908596136,0.001538,95505.0,95504.0,0.209415]
[1734908596389,0.000538,95505.0,95504.0,0.209415]
[1734908597471,0.000538,95505.0,95501.0,0.209421]
[1734908597472,0.000538,95505.0,95499.0,0.15]
[1734908597637,0.209415,95504.0,95488.0,0.209448]
[1734908597843,0.209415,95504.0,95491.0,0.15]
[1734908598041,0.000538,95505.0,95492.0,0.209441]
[1734908598238,0.000538,95505.0,95491.0,0.15]
[1734908598450,0.000538,95505.0,95504.0,0.002]
[1734908598656,0.000538,95505.0,95504.0,0.3127234]
[1734908598859,0.0811,95540.0,95507.0,0.1]
[1734908599174,0.0811,95540.0,95535.0,0.418692]
[1734908599377,0.0811,95540.0,95520.0,0.18974169]
[1734908599535,0.0811,95540.0,95521.0,0.15]
[1734908599735,0.0811,95540.0,95527.0,0.209363]
[1734908600052,0.209338,95539.0,95523.0,0.209373]
[1734908600260,0.0811,95540.0,95523.0,0.209373]
[1734908600671,0.0811,95540.0,95523.0,0.20953429]
[1734908600672,0.1013084,95539.0,95523.0,0.20953429]
[1734908600870,0.1013084,95539.0,95523.0,0.00016129]
[1734908601079,0.209357,95531.0,95523.0,0.00016129]
[1734908601284,0.209366,95527.0,95523.0,0.00016129]
[1734908601487,0.1013084,95527.0,95523.0,0.00016129]
[1734908601658,0.3106754,95526.0,95523.0,0.00016129]
[1734908601858,0.5200424,95526.0,95523.0,0.00016129]
[1734908602355,0.289971,95524.0,95523.0,0.00016129]
[1734908602537,0.3912794,95524.0,95523.0,0.00016129]
[1734908602703,0.3912794,95524.0,95523.0,0.00116129]
[1734908602905,0.3912794,95524.0,95523.0,0.00016129]
[1734908603301,0.3912794,95524.0,95523.0,0.00116129]
[1734908603506,0.3912794,95524.0,95523.0,0.00016129]
[1734908605124,0.009,95524.0,95523.0,0.00116129]
[1734908605324,0.0806,95538.0,95523.0,0.00016129]
[1734908605532,0.1819084,95538.0,95511.0,0.15]
[1734908605736,0.008,95524.0,95523.0,0.001]
[1734908605904,0.209342,95537.0,95520.0,0.20938]
[1734908606242,0.005,95524.0,95520.0,0.20938]
[1734908606447,0.209353,95532.0,95519.0,0.00016142]
[1734908606698,0.209365,95527.0,95519.0,0.00016142]
[1734908607287,0.209378,95521.0,95519.0,0.00016142]
[1734908608103,0.000171,95524.0,95519.0,0.00016142]
[1734908609165,0.003,95521.0,95520.0,0.2513084]
[1734908609368,0.000171,95524.0,95521.0,0.359378]
[1734908609573,0.0001714,95548.0,95520.0,0.2513084]
[1734908609574,0.0001714,95548.0,95538.0,0.209339]
[1734908610207,0.0001714,95548.0,95538.0,0.418679]
[1734908610408,0.0001714,95548.0,95541.0,0.15]
[1734908610914,0.0001714,95548.0,95541.0,0.15104653]
[1734908611284,0.0001714,95548.0,95541.0,0.15]
[1734908611653,0.0001714,95548.0,95541.0,0.04345696]
[1734908611853,0.0001714,95548.0,95539.0,0.15]
[1734908612114,0.2105044,95542.0,95541.0,0.008]
[1734908612450,0.2095044,95542.0,95530.0,0.15]
[1734908612686,0.1064798,95542.0,95525.0,0.15]
[1734908612922,0.209345,95536.0,95525.0,0.15]
[1734908613419,0.209336,95540.0,95526.0,0.209367]
[1734908613676,0.0829,95541.0,95532.0,0.209352]
[1734908614433,0.0031714,95542.0,95536.0,0.209343]
[1734908614977,0.0031714,95542.0,95533.0,0.209351]
[1734908615201,0.0001714,95542.0,95531.0,0.15]
[1734908615392,0.0001714,95542.0,95533.0,0.15]
[1734908615633,0.002,95536.0,95532.0,0.209353]
[1734908615810,0.0001714,95542.0,95532.0,0.209353]
[1734908616177,0.0011714,95542.0,95532.0,0.209353]
[1734908616375,0.0001714,95542.0,95532.0,0.209353]
[1734908616731,0.002,95536.0,95532.0,0.209353]
[1734908617312,0.002,95536.0,95533.0,0.209351]
[1734908617509,0.0001714,95542.0,95533.0,0.209351]
[1734908618039,0.0001714,95542.0,95524.0,0.04298442]
[1734908618040,0.209334,95541.0,95524.0,0.04298442]
[1734908618246,0.209368,95526.0,95519.0,0.00016142]
[1734908618400,0.0829,95539.0,95519.0,0.00016142]
[1734908618603,0.209367,95526.0,95519.0,0.00016142]
[1734908618842,0.209361,95529.0,95519.0,0.00016142]
[1734908619056,0.209358,95530.0,95519.0,0.00016142]
[1734908619795,0.209342,95537.0,95519.0,0.21154142]
[1734908619959,0.209347,95535.0,95519.0,0.21154142]
[1734908620161,0.3106554,95535.0,95524.0,8.55e-05]
[1734908620557,0.003,95530.0,95517.0,0.04251539]
[1734908620767,0.003,95530.0,95519.0,0.209382]
[1734908620967,0.003,95530.0,95523.0,0.209372]
[1734908621188,0.003,95530.0,95521.0,0.209378]
[1734908621189,0.003,95530.0,95521.0,0.15]
[1734908621398,0.0829,95539.0,95521.0,0.15]
[1734908621594,0.1013084,95538.0,95517.0,0.00016146]
[1734908621794,0.292284,95518.0,95517.0,0.00016146]
[1734908622088,0.3935924,95518.0,95517.0,0.00016146]
[1734908622777,0.209413,95505.0,95464.0,0.09189824]
[1734908622987,0.4166214,95505.0,95504.0,0.00024698]
[1734908623941,0.4256214,95505.0,95504.0,0.00124698]
[1734908624138,0.4166214,95505.0,95504.0,0.00024698]
[1734908624519,0.4256214,95505.0,95504.0,0.00124698]
[1734908625379,0.4026214,95505.0,95504.0,0.00124698]
[1734908625583,0.009,95505.0,95504.0,0.00124698]
[1734908625927,0.0832,95530.0,95504.0,0.00129391]
[1734908626159,0.0832,95541.0,95505.0,0.15104687]
[1734908626394,0.0832,95541.0,95529.0,0.209358]
[1734908626395,0.1013084,95540.0,95529.0,0.209358]
[1734908626640,0.0832,95541.0,95519.0,0.209382]
[1734908626863,0.209334,95541.0,95527.0,0.15]
[1734908627501,0.218334,95541.0,95514.0,0.209392]
[1734908627677,0.1013084,95540.0,95506.0,0.15]
[1734908627883,0.023,95539.0,95506.0,0.15]
[1734908628085,0.023,95537.0,95506.0,0.15]
[1734908628256,0.209369,95525.0,95506.0,0.15]
[1734908628466,0.1013084,95536.0,95509.0,0.15]
[1734908628666,0.1013084,95536.0,95510.0,0.00104684]
[1734908628881,0.209321,95547.0,95516.0,0.15]
[1734908629079,0.006,95541.0,95516.0,0.15]
[1734908629279,0.006,95541.0,95512.0,0.00104677]
[1734908629280,0.006,95541.0,95526.0,0.209366]
[1734908629481,0.006,95541.0,95518.0,0.15]
[1734908629482,0.209312,95551.0,95524.0,0.15]
[1734908629681,0.005,95536.0,95518.0,0.15]
[1734908629859,0.1063084,95536.0,95518.0,0.15]
[1734908630064,0.1013084,95536.0,95518.0,0.15]
[1734908630394,0.209348,95535.0,95518.0,0.15]
[1734908630659,0.1013084,95536.0,95509.0,0.03616287]
[1734908630912,0.209366,95527.0,95507.0,0.954816]
[1734908631168,0.209317,95549.0,95504.0,0.03683317]
[1734908631169,0.209379,95521.0,95504.0,0.03683317]
[1734908631438,0.209355,95532.0,95515.0,0.20939]
[1734908631646,0.1013084,95531.0,95515.0,0.20939]
[1734908631854,0.005,95536.0,95506.0,8.55e-05]
[1734908632062,0.005,95536.0,95520.0,0.209379]
[1734908632512,0.292544,95537.0,95520.0,0.209379]
[1734908632708,0.005,95535.0,95520.0,0.209379]
[1734908632839,0.005,95535.0,95507.0,0.1013084]
[1734908633040,0.418698,95534.0,95514.0,0.209391]
[1734908633362,0.209349,95534.0,95520.0,0.001]
[1734908633591,0.209349,95534.0,95518.0,0.209382]
[1734908633744,0.209349,95534.0,95507.0,0.1013084]
[1734908633745,0.1013084,95533.0,95507.0,0.03685755]
[1734908633941,0.209358,95530.0,95512.0,0.209396]
[1734908634219,0.3106664,95530.0,95506.0,8.55e-05]
[1734908634351,0.209376,95522.0,95506.0,8.55e-05]
[1734908634556,0.209386,95517.0,95506.0,8.55e-05]
[1734908634767,0.1013084,95521.0,95506.0,8.55e-05]
[1734908634987,0.20938,95520.0,95506.0,8.55e-05]
[1734908635150,0.20938,95520.0,95506.0,0.2094955]
[1734908635563,0.20938,95520.0,95506.0,8.55e-05]
[1734908635764,0.209382,95519.0,95506.0,8.55e-05]
[1734908636378,0.209382,95519.0,95502.0,0.08375048]
[1734908636578,0.209382,95519.0,95502.0,0.00016152]
[1734908636982,0.212382,95519.0,95502.0,0.00016152]
[1734908637225,0.209382,95519.0,95502.0,0.41899852]
[1734908637460,0.209382,95519.0,95503.0,0.15]
[1734908637755,0.209412,95506.0,95502.0,0.00016152]
[1734908638578,0.285197,95512.0,95502.0,0.00016152]
[1734908638828,0.209402,95510.0,95502.0,0.00016152]
[1734908639036,0.209383,95519.0,95502.0,0.00016152]
[1734908639244,0.1013084,95518.0,95503.0,0.001]
[1734908639449,0.209414,95505.0,95502.0,0.00016152]
[1734908639652,0.209417,95503.0,95502.0,0.00016152]
[1734908639806,0.3865254,95503.0,95502.0,0.00016152]
[1734908641502,0.4095254,95503.0,95502.0,0.00016152]
[1734908641918,0.4585254,95503.0,95502.0,0.00016152]
[1734908642119,0.2261084,95503.0,95502.0,0.00016152]
[1734908642310,0.2301084,95503.0,95502.0,0.00016152]
[1734908643107,0.2531084,95503.0,95502.0,0.00016152]
[1734908644116,0.2531084,95503.0,95502.0,0.00024702]
[1734908644676,0.1811084,95503.0,95502.0,0.00024702]
[1734908645095,0.2041084,95503.0,95502.0,0.00024702]
[1734908645322,0.2001084,95503.0,95502.0,0.00024702]
[1734908645523,0.2001084,95503.0,95484.0,0.03597478]
[1734908645728,0.2001084,95503.0,95484.0,0.000538]
[1734908645729,0.209441,95492.0,95484.0,0.000538]
[1734908646141,0.3107274,95502.0,95484.0,0.000538]
[1734908646404,0.3107274,95502.0,95485.0,0.209456]
[1734908646622,0.1013084,95502.0,95485.0,0.209456]
[1734908646825,0.1013084,95502.0,95484.0,0.000538]
[1734908646996,0.1013084,95502.0,95486.0,0.209454]
[1734908647216,0.209421,95501.0,95486.0,0.209454]
[1734908647415,0.209426,95499.0,95484.0,0.000538]
[1734908647968,0.209426,95499.0,95484.0,0.209996]
[1734908648402,0.1013084,95500.0,95484.0,0.209996]
[1734908648586,0.209426,95499.0,95485.0,0.15]
[1734908648770,0.0803,95513.0,95485.0,0.15]
[1734908648970,0.002,95499.0,95490.0,0.15]
[1734908649212,0.002,95499.0,95493.0,0.209439]
[1734908649417,0.1013084,95512.0,95490.0,0.15]
[1734908649617,0.0804,95528.0,95502.0,0.18977687]
[1734908649868,0.1013084,95525.0,95516.0,0.18977687]
[1734908650269,0.209371,95524.0,95505.0,0.359413]
[1734908650475,0.1013084,95523.0,95505.0,0.359413]
[1734908651192,0.1013084,95523.0,95505.0,0.35957458]